[Event "Late-Titled-Tuesday-Blitz-March-12-2024"]
[Site "Chess.com"]
[Date "2024.03.12"]
[Round "8"]
[White "cthake"]
[Black "Josgar05"]
[Result "0-1"]
[WhiteElo "1740"]
[BlackElo "2331"]
[TimeControl "180+1"]
[EndTime "15:26:34 PDT"]
[Termination "Josgar05 won by checkmate"]

1. c4 {[%clk 0:03:00.9]} 1... g6 {[%clk 0:02:57.9]} 2. Nc3 {[%clk 0:03:00.2]}
2... Bg7 {[%clk 0:02:57.9]} 3. g3 {[%clk 0:02:58]} 3... f5 {[%clk 0:02:57.2]} 4.
Bg2 {[%clk 0:02:57.2]} 4... Nf6 {[%clk 0:02:57]} 5. d4 {[%clk 0:02:56.8]} 5...
d6 {[%clk 0:02:56.2]} 6. e3 {[%clk 0:02:56.8]} 6... O-O {[%clk 0:02:55.8]} 7.
Nge2 {[%clk 0:02:55.2]} 7... c6 {[%clk 0:02:52.4]} 8. O-O {[%clk 0:02:54]} 8...
Nbd7 {[%clk 0:02:51.3]} 9. Rb1 {[%clk 0:02:47.6]} 9... e5 {[%clk 0:02:50.3]} 10.
b4 {[%clk 0:02:41]} 10... e4 {[%clk 0:02:37.6]} 11. a4 {[%clk 0:02:39.7]} 11...
a5 {[%clk 0:02:36.2]} 12. b5 {[%clk 0:02:38.7]} 12... c5 {[%clk 0:02:36.2]} 13.
Nf4 {[%clk 0:02:36.9]} 13... Nb6 {[%clk 0:02:33.2]} 14. dxc5 {[%clk 0:02:29.9]}
14... dxc5 {[%clk 0:02:32.2]} 15. Qe2 {[%clk 0:02:20]} 15... g5 {[%clk
0:02:19.3]} 16. Nfd5 {[%clk 0:02:06]} 16... Nfxd5 {[%clk 0:02:18.9]} 17. cxd5
{[%clk 0:02:03.7]} 17... Qd6 {[%clk 0:02:18]} 18. Bb2 {[%clk 0:01:54.7]} 18...
Bd7 {[%clk 0:02:14.4]} 19. Rfd1 {[%clk 0:01:53.4]} 19... Rae8 {[%clk 0:02:04.9]}
20. f3 {[%clk 0:01:45.5]} 20... exf3 {[%clk 0:01:59.9]} 21. Bxf3 {[%clk
0:01:44.4]} 21... g4 {[%clk 0:01:54.7]} 22. Bg2 {[%clk 0:01:43.7]} 22... Bh6
{[%clk 0:01:54.8]} 23. Bc1 {[%clk 0:01:38.6]} 23... Re7 {[%clk 0:01:43.8]} 24.
Qf2 {[%clk 0:01:25.8]} 24... Nc4 {[%clk 0:01:35.3]} 25. e4 {[%clk 0:01:23.7]}
25... Qe5 {[%clk 0:01:35]} 26. Bxh6 {[%clk 0:01:22.7]} 26... Qxc3 {[%clk
0:01:33.1]} 27. Bxf8 {[%clk 0:01:21.6]} 27... Kxf8 {[%clk 0:01:34]} 28. exf5
{[%clk 0:01:18.7]} 28... Ne3 {[%clk 0:01:21.4]} 29. d6 {[%clk 0:01:11.4]} 29...
Re5 {[%clk 0:01:18.7]} 30. Re1 {[%clk 0:01:06.4]} 30... Bxf5 {[%clk 0:01:10.7]}
31. d7 {[%clk 0:00:59.9]} 31... Ke7 {[%clk 0:01:07.4]} 32. Bxb7 {[%clk
0:00:53.2]} 32... Kxd7 {[%clk 0:01:01.8]} 33. Bc6+ {[%clk 0:00:53.4]} 33... Kc7
{[%clk 0:01:01.2]} 34. Qf4 {[%clk 0:00:52]} 34... Qd4 {[%clk 0:00:54.2]} 35.
Qxd4 {[%clk 0:00:45.6]} 35... cxd4 {[%clk 0:00:55.1]} 36. Rbc1 {[%clk
0:00:43.9]} 36... Kb6 {[%clk 0:00:46]} 37. Kf2 {[%clk 0:00:43.3]} 37... Be6
{[%clk 0:00:37.7]} 38. Re2 {[%clk 0:00:34.2]} 38... Bb3 {[%clk 0:00:26.7]} 39.
Be8 {[%clk 0:00:32.4]} 39... Bxa4 {[%clk 0:00:26]} 40. Rc6+ {[%clk 0:00:32.4]}
40... Kb7 {[%clk 0:00:26.4]} 41. Rd6 {[%clk 0:00:27.4]} 41... Rf5+ {[%clk
0:00:26.6]} 42. Ke1 {[%clk 0:00:24.8]} 42... Rf1+ {[%clk 0:00:26.8]} 43. Kd2
{[%clk 0:00:25.1]} 43... Rd1# {[%clk 0:00:27.7]} 0-1

[Event "Late-Titled-Tuesday-Blitz-March-12-2024"]
[Site "Chess.com"]
[Date "2024.03.12"]
[Round "8"]
[White "betta2004"]
[Black "Korchmar_Vasiliy"]
[Result "1-0"]
[WhiteElo "2577"]
[BlackElo "2692"]
[TimeControl "180+1"]
[EndTime "15:26:36 PDT"]
[Termination "betta2004 won by checkmate"]

1. d4 {[%clk 0:02:59.7]} 1... Nf6 {[%clk 0:02:59.5]} 2. Nc3 {[%clk 0:03:00.6]}
2... c5 {[%clk 0:02:54]} 3. d5 {[%clk 0:02:59.2]} 3... g6 {[%clk 0:02:52.2]} 4.
e4 {[%clk 0:02:59.4]} 4... Bg7 {[%clk 0:02:52.9]} 5. Nf3 {[%clk 0:02:58.4]} 5...
O-O {[%clk 0:02:53.2]} 6. Be2 {[%clk 0:02:57.1]} 6... e6 {[%clk 0:02:52.6]} 7.
O-O {[%clk 0:02:53.4]} 7... exd5 {[%clk 0:02:52.9]} 8. exd5 {[%clk 0:02:54.3]}
8... d6 {[%clk 0:02:52.9]} 9. Bg5 {[%clk 0:02:52.9]} 9... h6 {[%clk 0:02:52.5]}
10. Bh4 {[%clk 0:02:53]} 10... g5 {[%clk 0:02:52.9]} 11. Bg3 {[%clk 0:02:52.9]}
11... Nh5 {[%clk 0:02:53.6]} 12. Nd2 {[%clk 0:02:53.1]} 12... Nxg3 {[%clk
0:02:52.6]} 13. hxg3 {[%clk 0:02:54]} 13... Bf5 {[%clk 0:02:50.7]} 14. Nc4
{[%clk 0:02:54]} 14... Na6 {[%clk 0:02:40.2]} 15. Nb5 {[%clk 0:02:53.4]} 15...
Nb4 {[%clk 0:02:35.6]} 16. c3 {[%clk 0:02:50]} 16... a6 {[%clk 0:01:51.3]} 17.
Nbxd6 {[%clk 0:02:46]} 17... Bc2 {[%clk 0:01:42.4]} 18. Qd2 {[%clk 0:02:44.3]}
18... b5 {[%clk 0:01:42.9]} 19. cxb4 {[%clk 0:02:40.8]} 19... Bg6 {[%clk
0:01:42.8]} 20. bxc5 {[%clk 0:02:35.7]} 20... bxc4 {[%clk 0:01:43.3]} 21. Bxc4
{[%clk 0:02:36.1]} 21... Rb8 {[%clk 0:01:40.9]} 22. b3 {[%clk 0:02:29.6]} 22...
Qc7 {[%clk 0:01:34.9]} 23. Qe3 {[%clk 0:02:23.6]} 23... f5 {[%clk 0:01:16.8]}
24. Rac1 {[%clk 0:02:19.3]} 24... f4 {[%clk 0:01:16.4]} 25. Qe6+ {[%clk
0:02:19.8]} 25... Kh7 {[%clk 0:01:16.5]} 26. Rfe1 {[%clk 0:02:11.7]} 26... fxg3
{[%clk 0:01:13.1]} 27. fxg3 {[%clk 0:01:54.5]} 27... Qxc5+ {[%clk 0:01:11.6]}
28. Kh1 {[%clk 0:01:53.9]} 28... Rb6 {[%clk 0:00:20.1]} 29. Qxg6+ {[%clk
0:01:42]} 29... Kxg6 {[%clk 0:00:18.5]} 30. Bd3+ {[%clk 0:01:42.9]} 30... Kh5
{[%clk 0:00:13.8]} 31. Rxc5 {[%clk 0:01:03.6]} 31... Rxd6 {[%clk 0:00:14.1]} 32.
g4+ {[%clk 0:00:46.6]} 32... Kh4 {[%clk 0:00:10.8]} 33. Kh2 {[%clk 0:00:43.9]}
33... Rf2 {[%clk 0:00:09.6]} 34. Rc4 {[%clk 0:00:34.4]} 34... Rxd5 {[%clk
0:00:06.5]} 35. Re3 {[%clk 0:00:34.6]} 35... Be5+ {[%clk 0:00:06]} 36. Kg1
{[%clk 0:00:32.3]} 36... Rxa2 {[%clk 0:00:04.8]} 37. Rh3# {[%clk 0:00:31.8]} 1-0

[Event "Late-Titled-Tuesday-Blitz-March-12-2024"]
[Site "Chess.com"]
[Date "2024.03.12"]
[Round "8"]
[White "Adar_07"]
[Black "GMBenjaminBok"]
[Result "1-0"]
[WhiteElo "2827"]
[BlackElo "3010"]
[TimeControl "180+1"]
[EndTime "15:26:40 PDT"]
[Termination "Adar_07 won on time"]

1. e4 {[%clk 0:03:00.9]} 1... c5 {[%clk 0:02:58.4]} 2. Nf3 {[%clk 0:03:01]} 2...
d6 {[%clk 0:02:58.8]} 3. d4 {[%clk 0:02:57]} 3... cxd4 {[%clk 0:02:59.7]} 4.
Nxd4 {[%clk 0:02:57.9]} 4... Nf6 {[%clk 0:03:00.2]} 5. Nc3 {[%clk 0:02:58.7]}
5... a6 {[%clk 0:03:00.8]} 6. h3 {[%clk 0:02:47.4]} 6... e5 {[%clk 0:02:59.8]}
7. Nb3 {[%clk 0:02:47.7]} 7... Be7 {[%clk 0:02:58.2]} 8. g4 {[%clk 0:02:45]}
8... h6 {[%clk 0:02:57.8]} 9. Be3 {[%clk 0:02:41]} 9... Nbd7 {[%clk 0:02:57.3]}
10. Qd2 {[%clk 0:02:38.5]} 10... b5 {[%clk 0:02:57.3]} 11. f3 {[%clk 0:02:37.8]}
11... Bb7 {[%clk 0:02:55.3]} 12. O-O-O {[%clk 0:02:36.8]} 12... b4 {[%clk
0:02:20.2]} 13. Ne2 {[%clk 0:02:36.8]} 13... d5 {[%clk 0:01:59.8]} 14. Ng3
{[%clk 0:02:23.7]} 14... d4 {[%clk 0:01:58.3]} 15. Bf2 {[%clk 0:02:23.6]} 15...
Nxg4 {[%clk 0:01:28]} 16. f4 {[%clk 0:01:29.4]} 16... Nxf2 {[%clk 0:01:20]} 17.
Qxf2 {[%clk 0:01:30.3]} 17... O-O {[%clk 0:01:10.3]} 18. Rg1 {[%clk 0:01:26.5]}
18... Bh4 {[%clk 0:01:04.8]} 19. Qf3 {[%clk 0:01:08]} 19... exf4 {[%clk
0:00:39.8]} 20. Nf5 {[%clk 0:01:05.1]} 20... Kh8 {[%clk 0:00:16.5]} 21. Rxd4
{[%clk 0:00:24.8]} 21... Ne5 {[%clk 0:00:08.4]} 22. Qh5 {[%clk 0:00:19.1]} 22...
Qf6 {[%clk 0:00:07.1]} 23. Nxh4 {[%clk 0:00:15.1]} 23... Rad8 {[%clk 0:00:05.7]}
24. Nf5 {[%clk 0:00:11]} 24... Rxd4 {[%clk 0:00:04.5]} 25. Nbxd4 {[%clk
0:00:11.9]} 25... Bxe4 {[%clk 0:00:03.9]} 26. Rxg7 {[%clk 0:00:11.9]} 26... Bxf5
{[%clk 0:00:02.6]} 27. Nxf5 {[%clk 0:00:11.6]} 27... Rd8 {[%clk 0:00:01.5]} 28.
Rg1 {[%clk 0:00:09.3]} 1-0

[Event "Late-Titled-Tuesday-Blitz-March-12-2024"]
[Site "Chess.com"]
[Date "2024.03.12"]
[Round "8"]
[White "matagordo"]
[Black "Kopytkin"]
[Result "0-1"]
[WhiteElo "2293"]
[BlackElo "2429"]
[TimeControl "180+1"]
[EndTime "15:26:42 PDT"]
[Termination "Kopytkin won by resignation"]

1. d4 {[%clk 0:03:00.9]} 1... g6 {[%clk 0:02:34.5]} 2. Bf4 {[%clk 0:03:00]} 2...
Bg7 {[%clk 0:02:32.1]} 3. Nc3 {[%clk 0:03:00.2]} 3... d6 {[%clk 0:02:30.1]} 4.
e4 {[%clk 0:03:00.1]} 4... Nc6 {[%clk 0:02:29.7]} 5. Nge2 {[%clk 0:02:58.6]}
5... e5 {[%clk 0:02:18.8]} 6. dxe5 {[%clk 0:02:53.6]} 6... dxe5 {[%clk
0:02:19.7]} 7. Qxd8+ {[%clk 0:02:53.9]} 7... Nxd8 {[%clk 0:02:20.3]} 8. Be3
{[%clk 0:02:54.3]} 8... c6 {[%clk 0:02:19.6]} 9. O-O-O {[%clk 0:02:54.1]} 9...
Nf6 {[%clk 0:02:13.7]} 10. f3 {[%clk 0:02:52]} 10... Be6 {[%clk 0:02:10.6]} 11.
Kb1 {[%clk 0:02:52.2]} 11... b5 {[%clk 0:02:06.8]} 12. h4 {[%clk 0:02:50.8]}
12... Nb7 {[%clk 0:02:04.3]} 13. Ng3 {[%clk 0:02:45]} 13... h5 {[%clk
0:02:01.1]} 14. Nge2 {[%clk 0:02:38.1]} 14... O-O {[%clk 0:02:00.1]} 15. a3
{[%clk 0:02:32.8]} 15... a5 {[%clk 0:02:00]} 16. Na2 {[%clk 0:02:01.3]} 16...
Rfd8 {[%clk 0:01:39.3]} 17. Nec3 {[%clk 0:01:41.3]} 17... Rxd1+ {[%clk
0:01:32.2]} 18. Nxd1 {[%clk 0:01:42.2]} 18... Rd8 {[%clk 0:01:20]} 19. Be2
{[%clk 0:01:41.9]} 19... Bf8 {[%clk 0:01:06.5]} 20. Bg5 {[%clk 0:01:41.4]} 20...
Kg7 {[%clk 0:01:03.9]} 21. g4 {[%clk 0:01:38.3]} 21... Rd7 {[%clk 0:00:58.5]}
22. Rg1 {[%clk 0:01:29.6]} 22... hxg4 {[%clk 0:00:54.8]} 23. Bxf6+ {[%clk
0:01:26.8]} 23... Kxf6 {[%clk 0:00:55.7]} 24. fxg4 {[%clk 0:01:27.1]} 24... Bc5
{[%clk 0:00:52.5]} 25. Rf1+ {[%clk 0:01:25.2]} 25... Kg7 {[%clk 0:00:52.6]} 26.
h5 {[%clk 0:01:18.6]} 26... Rd8 {[%clk 0:00:48.6]} 27. Bd3 {[%clk 0:00:54.7]}
27... Rh8 {[%clk 0:00:45]} 28. Be2 {[%clk 0:00:45.1]} 28... Rd8 {[%clk
0:00:39.7]} 29. Bd3 {[%clk 0:00:44.9]} 29... Bxg4 {[%clk 0:00:37.1]} 30. hxg6
{[%clk 0:00:41.2]} 30... fxg6 {[%clk 0:00:37.5]} 31. Nf2 {[%clk 0:00:40.1]}
31... Be6 {[%clk 0:00:31.4]} 32. Nc3 {[%clk 0:00:35.4]} 32... Rf8 {[%clk
0:00:30.6]} 33. Ncd1 {[%clk 0:00:33.9]} 33... Nd6 {[%clk 0:00:30.3]} 34. Kc1
{[%clk 0:00:27.8]} 34... Nc4 {[%clk 0:00:30.3]} 35. Ng4 {[%clk 0:00:11.9]} 35...
Bxg4 {[%clk 0:00:26]} 36. Rg1 {[%clk 0:00:10.8]} 36... Bxg1 {[%clk 0:00:24.8]}
0-1

[Event "Late-Titled-Tuesday-Blitz-March-12-2024"]
[Site "Chess.com"]
[Date "2024.03.12"]
[Round "8"]
[White "zajka-molotok"]
[Black "Danito1954"]
[Result "0-1"]
[WhiteElo "2553"]
[BlackElo "2343"]
[TimeControl "180+1"]
[EndTime "15:26:44 PDT"]
[Termination "Danito1954 won by resignation"]

1. e4 {[%clk 0:03:00.9]} 1... e5 {[%clk 0:02:59.3]} 2. Nf3 {[%clk 0:03:00.1]}
2... Nc6 {[%clk 0:02:59.9]} 3. Nc3 {[%clk 0:02:59.6]} 3... Nf6 {[%clk
0:02:59.9]} 4. Bb5 {[%clk 0:02:59.5]} 4... Nd4 {[%clk 0:02:58.6]} 5. O-O {[%clk
0:02:58.4]} 5... Nxb5 {[%clk 0:02:56.2]} 6. Nxb5 {[%clk 0:02:59.3]} 6... c6
{[%clk 0:02:55.4]} 7. Nc3 {[%clk 0:02:58.7]} 7... d6 {[%clk 0:02:56.3]} 8. d4
{[%clk 0:02:58.3]} 8... Qc7 {[%clk 0:02:55.7]} 9. Bg5 {[%clk 0:02:51.9]} 9...
Be7 {[%clk 0:02:56.1]} 10. h3 {[%clk 0:02:41.1]} 10... O-O {[%clk 0:02:48.7]}
11. Qd3 {[%clk 0:02:38]} 11... b5 {[%clk 0:02:37.3]} 12. Rad1 {[%clk 0:02:32.6]}
12... b4 {[%clk 0:02:29.8]} 13. Ne2 {[%clk 0:02:31.7]} 13... c5 {[%clk
0:02:30.4]} 14. dxe5 {[%clk 0:02:26.8]} 14... dxe5 {[%clk 0:02:31.3]} 15. Ng3
{[%clk 0:02:08.3]} 15... a5 {[%clk 0:02:27.3]} 16. Rfe1 {[%clk 0:02:05.6]} 16...
c4 {[%clk 0:02:24.3]} 17. Qe3 {[%clk 0:02:00.2]} 17... Bc5 {[%clk 0:02:22.3]}
18. Qe2 {[%clk 0:01:56]} 18... Ra6 {[%clk 0:02:20]} 19. Nf5 {[%clk 0:01:27.7]}
19... Bxf5 {[%clk 0:01:47.9]} 20. exf5 {[%clk 0:01:28.6]} 20... Re8 {[%clk
0:01:46.8]} 21. Bxf6 {[%clk 0:01:25.4]} 21... Rxf6 {[%clk 0:01:43.1]} 22. Qe4
{[%clk 0:01:24.9]} 22... g6 {[%clk 0:01:43]} 23. fxg6 {[%clk 0:01:15.4]} 23...
hxg6 {[%clk 0:01:43.9]} 24. Rd5 {[%clk 0:01:14.6]} 24... Ba7 {[%clk 0:01:37.8]}
25. Rxe5 {[%clk 0:01:07.8]} 25... Rxe5 {[%clk 0:01:37.8]} 26. Qxe5 {[%clk
0:01:07.8]} 26... Qb6 {[%clk 0:01:38.4]} 27. Qe3 {[%clk 0:00:51.4]} 27... Qa6
{[%clk 0:01:34.2]} 28. Qe8+ {[%clk 0:00:47.8]} 28... Kg7 {[%clk 0:01:34.3]} 29.
Qe5 {[%clk 0:00:46.7]} 29... Qb6 {[%clk 0:01:28.9]} 30. Re2 {[%clk 0:00:46.3]}
30... a4 {[%clk 0:01:25.9]} 31. b3 {[%clk 0:00:37.9]} 31... axb3 {[%clk
0:01:21.6]} 32. axb3 {[%clk 0:00:37.7]} 32... cxb3 {[%clk 0:01:22.5]} 33. cxb3
{[%clk 0:00:38.4]} 33... Bb8 {[%clk 0:01:21.1]} 34. Qb2 {[%clk 0:00:36.1]} 34...
Qd6 {[%clk 0:01:17.4]} 35. Rd2 {[%clk 0:00:34]} 35... Qc7 {[%clk 0:01:06.2]} 36.
Rd1 {[%clk 0:00:30.9]} 36... Qc3 {[%clk 0:01:03.7]} 37. Qxc3 {[%clk 0:00:29.3]}
37... bxc3 {[%clk 0:01:04.6]} 38. Rc1 {[%clk 0:00:28.3]} 38... Ra6 {[%clk
0:01:04.4]} 39. g3 {[%clk 0:00:24.6]} 39... Ra2 {[%clk 0:01:02.3]} 40. Rxc3
{[%clk 0:00:15.1]} 40... Ba7 {[%clk 0:01:01.5]} 41. Ng5 {[%clk 0:00:04.3]} 41...
Rxf2 {[%clk 0:00:49.6]} 42. Rc7 {[%clk 0:00:03.7]} 42... Bb6 {[%clk 0:00:44.6]}
43. Rb7 {[%clk 0:00:03.9]} 43... Be3 {[%clk 0:00:44.6]} 44. Kh1 {[%clk
0:00:03.4]} 44... Bxg5 {[%clk 0:00:44.2]} 0-1

[Event "Late-Titled-Tuesday-Blitz-March-12-2024"]
[Site "Chess.com"]
[Date "2024.03.12"]
[Round "8"]
[White "NelsonLinda"]
[Black "Quattroporte300"]
[Result "1-0"]
[WhiteElo "2644"]
[BlackElo "2495"]
[TimeControl "180+1"]
[EndTime "15:26:45 PDT"]
[Termination "NelsonLinda won by resignation"]

1. b3 {[%clk 0:03:00.9]} 1... e5 {[%clk 0:02:59.7]} 2. Bb2 {[%clk 0:03:01.8]}
2... Nc6 {[%clk 0:02:59.5]} 3. e3 {[%clk 0:03:01.9]} 3... Nf6 {[%clk 0:02:59.7]}
4. Bb5 {[%clk 0:03:00]} 4... Bd6 {[%clk 0:02:59.4]} 5. Na3 {[%clk 0:02:59.5]}
5... a6 {[%clk 0:02:59.6]} 6. Be2 {[%clk 0:02:59.2]} 6... b5 {[%clk 0:02:53]} 7.
c4 {[%clk 0:02:58.4]} 7... b4 {[%clk 0:02:51.8]} 8. Nc2 {[%clk 0:02:58.5]} 8...
O-O {[%clk 0:02:50.8]} 9. Nf3 {[%clk 0:02:52.5]} 9... Re8 {[%clk 0:02:50]} 10.
O-O {[%clk 0:02:45.4]} 10... a5 {[%clk 0:02:46.3]} 11. d4 {[%clk 0:02:40.8]}
11... e4 {[%clk 0:02:43.1]} 12. Nd2 {[%clk 0:02:39.2]} 12... Bf8 {[%clk
0:02:15.2]} 13. d5 {[%clk 0:02:29.9]} 13... Ne5 {[%clk 0:02:14.7]} 14. Nd4
{[%clk 0:02:30.1]} 14... d6 {[%clk 0:02:09.7]} 15. a3 {[%clk 0:02:24.7]} 15...
Bd7 {[%clk 0:02:04.6]} 16. axb4 {[%clk 0:02:21.3]} 16... axb4 {[%clk 0:02:04.4]}
17. Re1 {[%clk 0:02:20.5]} 17... g6 {[%clk 0:01:54.8]} 18. Qc2 {[%clk
0:02:18.7]} 18... Bg7 {[%clk 0:01:50.5]} 19. Rxa8 {[%clk 0:02:13.3]} 19... Qxa8
{[%clk 0:01:49.9]} 20. Ra1 {[%clk 0:02:14.2]} 20... Qb7 {[%clk 0:01:41]} 21. Qb1
{[%clk 0:02:09.7]} 21... h5 {[%clk 0:01:36]} 22. h3 {[%clk 0:02:08.2]} 22... g5
{[%clk 0:01:08.3]} 23. Nf1 {[%clk 0:02:04.7]} 23... h4 {[%clk 0:01:05.8]} 24.
Ra5 {[%clk 0:01:59]} 24... Kh7 {[%clk 0:00:56.2]} 25. Nd2 {[%clk 0:01:56]} 25...
Ng6 {[%clk 0:00:53.6]} 26. Nc6 {[%clk 0:01:34.3]} 26... Bxc6 {[%clk 0:00:26.6]}
27. dxc6 {[%clk 0:01:35.2]} 27... Qxc6 {[%clk 0:00:27]} 28. Rxg5 {[%clk
0:01:34.3]} 28... Ne5 {[%clk 0:00:20.3]} 29. Rf5 {[%clk 0:01:31.3]} 29... Kg6
{[%clk 0:00:19.4]} 30. Rf4 {[%clk 0:01:30.4]} 30... Bh6 {[%clk 0:00:10.2]} 31.
Rxh4 {[%clk 0:01:23.2]} 31... Bg5 {[%clk 0:00:10.7]} 32. Nxe4 {[%clk 0:01:12]}
32... Bxh4 {[%clk 0:00:10.3]} 33. Nxd6+ {[%clk 0:01:11.9]} 33... Kg7 {[%clk
0:00:04.9]} 34. Nxe8+ {[%clk 0:00:55.8]} 34... Qxe8 {[%clk 0:00:05.8]} 35. g3
{[%clk 0:00:56.2]} 35... Bg5 {[%clk 0:00:05.2]} 36. Qf5 {[%clk 0:00:55.8]} 36...
Ned7 {[%clk 0:00:02.7]} 37. Qxg5+ {[%clk 0:00:55.9]} 37... Kf8 {[%clk
0:00:03.1]} 38. Bxf6 {[%clk 0:00:56.2]} 38... Nxf6 {[%clk 0:00:03]} 39. Qxf6
{[%clk 0:00:57]} 39... Qe4 {[%clk 0:00:03.7]} 40. Qh8+ {[%clk 0:00:49]} 40...
Ke7 {[%clk 0:00:03.7]} 41. Qb2 {[%clk 0:00:49.6]} 41... c5 {[%clk 0:00:02.9]}
42. Qc1 {[%clk 0:00:49.1]} 42... f5 {[%clk 0:00:02.9]} 43. Qd1 {[%clk
0:00:49.2]} 43... Ke6 {[%clk 0:00:03]} 44. Bf3 {[%clk 0:00:49.4]} 44... Qe5
{[%clk 0:00:03.2]} 45. Qd5+ {[%clk 0:00:49.1]} 45... Qxd5 {[%clk 0:00:03.2]} 46.
Bxd5+ {[%clk 0:00:49.9]} 1-0

[Event "Late-Titled-Tuesday-Blitz-March-12-2024"]
[Site "Chess.com"]
[Date "2024.03.12"]
[Round "8"]
[White "pirulillo"]
[Black "Sinquefield"]
[Result "0-1"]
[WhiteElo "2309"]
[BlackElo "2521"]
[TimeControl "180+1"]
[EndTime "15:26:47 PDT"]
[Termination "Sinquefield won by checkmate"]

1. e4 {[%clk 0:02:59.7]} 1... d6 {[%clk 0:02:59.1]} 2. d4 {[%clk 0:02:59.5]}
2... Nf6 {[%clk 0:02:59.5]} 3. Nc3 {[%clk 0:02:59.6]} 3... Nbd7 {[%clk
0:02:58.4]} 4. f4 {[%clk 0:02:59]} 4... e5 {[%clk 0:02:59.3]} 5. Nf3 {[%clk
0:02:58.7]} 5... exd4 {[%clk 0:02:59]} 6. Qxd4 {[%clk 0:02:56.8]} 6... c6 {[%clk
0:02:58.7]} 7. Bc4 {[%clk 0:02:55.3]} 7... d5 {[%clk 0:02:59.2]} 8. exd5 {[%clk
0:02:52.2]} 8... Bc5 {[%clk 0:02:59.7]} 9. Qd3 {[%clk 0:02:45.1]} 9... O-O
{[%clk 0:02:58.6]} 10. dxc6 {[%clk 0:02:31.2]} 10... Re8+ {[%clk 0:02:56.7]} 11.
Kf1 {[%clk 0:02:28.8]} 11... bxc6 {[%clk 0:02:55.7]} 12. Bd2 {[%clk 0:02:22.2]}
12... Qc7 {[%clk 0:02:32.8]} 13. g3 {[%clk 0:02:19.8]} 13... Nb6 {[%clk
0:02:31.5]} 14. Kg2 {[%clk 0:02:18.8]} 14... Rd8 {[%clk 0:02:16.5]} 15. Qe2
{[%clk 0:02:13.5]} 15... Bg4 {[%clk 0:02:11]} 16. Bd3 {[%clk 0:02:10.8]} 16...
Re8 {[%clk 0:02:10.4]} 17. Qf1 {[%clk 0:02:06.5]} 17... Nbd5 {[%clk 0:02:05.8]}
18. Nxd5 {[%clk 0:02:05.5]} 18... Nxd5 {[%clk 0:02:06.7]} 19. h3 {[%clk
0:02:04]} 19... Bd7 {[%clk 0:02:03.4]} 20. Re1 {[%clk 0:01:59.6]} 20... Ne3+
{[%clk 0:02:02.7]} 21. Bxe3 {[%clk 0:01:57.9]} 21... Bxe3 {[%clk 0:02:03.6]} 22.
Ne5 {[%clk 0:01:40.8]} 22... Bd4 {[%clk 0:01:49.7]} 23. Bxh7+ {[%clk 0:01:04.3]}
23... Kh8 {[%clk 0:01:37.8]} 24. Bd3 {[%clk 0:00:52.5]} 24... Bxe5 {[%clk
0:01:36.6]} 25. fxe5 {[%clk 0:00:50.8]} 25... Be6 {[%clk 0:01:33.1]} 26. Qf4
{[%clk 0:00:48.5]} 26... Qe7 {[%clk 0:01:21.8]} 27. Rhf1 {[%clk 0:00:45.9]}
27... Rab8 {[%clk 0:01:20.8]} 28. b3 {[%clk 0:00:45.2]} 28... Rb4 {[%clk
0:01:18.5]} 29. Qe3 {[%clk 0:00:43]} 29... Rd8 {[%clk 0:01:14.8]} 30. Kh2 {[%clk
0:00:42.9]} 30... Rbd4 {[%clk 0:01:05.3]} 31. Rf4 {[%clk 0:00:38.5]} 31... Qb4
{[%clk 0:01:02.9]} 32. Ref1 {[%clk 0:00:37.8]} 32... Qc3 {[%clk 0:00:59.3]} 33.
Re4 {[%clk 0:00:24.6]} 33... Rxd3 {[%clk 0:00:53.6]} 34. cxd3 {[%clk 0:00:23.4]}
34... Rxd3 {[%clk 0:00:54.5]} 35. Qf2 {[%clk 0:00:20]} 35... Bd5 {[%clk
0:00:36.2]} 36. Re2 {[%clk 0:00:20.4]} 36... Rf3 {[%clk 0:00:16.2]} 37. Qe1
{[%clk 0:00:17.5]} 37... Rxf1 {[%clk 0:00:15.4]} 38. Qxc3 {[%clk 0:00:16.8]}
38... Rh1# {[%clk 0:00:14.3]} 0-1

[Event "Late-Titled-Tuesday-Blitz-March-12-2024"]
[Site "Chess.com"]
[Date "2024.03.12"]
[Round "8"]
[White "IMRosen"]
[Black "ural58"]
[Result "0-1"]
[WhiteElo "2668"]
[BlackElo "2527"]
[TimeControl "180+1"]
[EndTime "15:26:49 PDT"]
[Termination "ural58 won by resignation"]

1. e4 {[%clk 0:03:00.9]} 1... d5 {[%clk 0:02:54.9]} 2. exd5 {[%clk 0:03:00.5]}
2... Qxd5 {[%clk 0:02:55]} 3. Nc3 {[%clk 0:03:01.3]} 3... Qa5 {[%clk 0:02:54.9]}
4. b4 {[%clk 0:03:01.8]} 4... Qxb4 {[%clk 0:02:53.5]} 5. Nb5 {[%clk 0:03:01.8]}
5... Qa5 {[%clk 0:02:52.9]} 6. Bc4 {[%clk 0:03:02]} 6... Nf6 {[%clk 0:02:50.3]}
7. Nf3 {[%clk 0:02:58.4]} 7... a6 {[%clk 0:02:50]} 8. Nbd4 {[%clk 0:02:57.7]}
8... e6 {[%clk 0:02:01.5]} 9. O-O {[%clk 0:02:56.8]} 9... Be7 {[%clk 0:01:58.1]}
10. d3 {[%clk 0:02:56.9]} 10... c5 {[%clk 0:01:57.1]} 11. Ne2 {[%clk 0:02:46.3]}
11... b5 {[%clk 0:01:54.5]} 12. Bb3 {[%clk 0:02:46.6]} 12... Bb7 {[%clk
0:01:53.9]} 13. Ng3 {[%clk 0:02:46.7]} 13... Nbd7 {[%clk 0:01:52.6]} 14. Re1
{[%clk 0:02:44.1]} 14... O-O {[%clk 0:01:51.7]} 15. Bb2 {[%clk 0:02:40.4]} 15...
Rad8 {[%clk 0:01:43.4]} 16. Qe2 {[%clk 0:02:38.7]} 16... Rfe8 {[%clk 0:01:39.8]}
17. Ng5 {[%clk 0:02:20.8]} 17... Bd5 {[%clk 0:01:34.4]} 18. c4 {[%clk
0:01:03.3]} 18... bxc4 {[%clk 0:01:31.4]} 19. dxc4 {[%clk 0:01:03.4]} 19... Ba8
{[%clk 0:01:26.3]} 20. Bc2 {[%clk 0:01:03.5]} 20... Nf8 {[%clk 0:01:23]} 21.
Rad1 {[%clk 0:00:43.9]} 21... Rxd1 {[%clk 0:01:17.5]} 22. Qxd1 {[%clk
0:00:44.3]} 22... Rd8 {[%clk 0:01:15.4]} 23. Qb1 {[%clk 0:00:44.3]} 23... h6
{[%clk 0:01:10]} 24. Bxf6 {[%clk 0:00:41.6]} 24... Bxf6 {[%clk 0:01:08]} 25.
Bh7+ {[%clk 0:00:41.7]} 25... Nxh7 {[%clk 0:01:05.1]} 26. Qxh7+ {[%clk 0:00:42]}
26... Kf8 {[%clk 0:01:05.5]} 27. Qh8+ {[%clk 0:00:32.4]} 27... Ke7 {[%clk
0:01:05.2]} 28. Nf5+ {[%clk 0:00:33]} 28... Kd7 {[%clk 0:01:00.2]} 29. Rd1+
{[%clk 0:00:33.2]} 29... Kc6 {[%clk 0:00:49.9]} 30. Nd4+ {[%clk 0:00:13.9]}
30... cxd4 {[%clk 0:00:42.4]} 31. Qh7 {[%clk 0:00:09.8]} 31... hxg5 {[%clk
0:00:41.1]} 32. c5 {[%clk 0:00:03.8]} 32... Kc7 {[%clk 0:00:39.3]} 33. c6 {[%clk
0:00:03.3]} 33... Qf5 {[%clk 0:00:38.3]} 34. Qxf5 {[%clk 0:00:02.3]} 34... exf5
{[%clk 0:00:37.9]} 35. f4 {[%clk 0:00:02.5]} 35... gxf4 {[%clk 0:00:35.9]} 36.
a4 {[%clk 0:00:02.9]} 36... Bxc6 {[%clk 0:00:35.1]} 37. a5 {[%clk 0:00:03.5]}
37... d3 {[%clk 0:00:34.1]} 38. h4 {[%clk 0:00:02.5]} 38... d2 {[%clk
0:00:33.2]} 39. Rb1 {[%clk 0:00:02.2]} 39... d1=Q+ {[%clk 0:00:32.4]} 40. Kh2
{[%clk 0:00:02]} 40... Qxb1 {[%clk 0:00:28.2]} 41. h5 {[%clk 0:00:02.2]} 41...
Qf1 {[%clk 0:00:26.7]} 0-1